Cogmind - Beta 17.1 *** ADVENTURER MODE // 2026.08.24 @ 22:33:12 Player: Raziel Result: Destroyed by G-34 Mercenary with Small Laser Performance ------------- Evolutions (1) 500 Regions Visited (3) 600 Robots Destroyed (15) 75 Value Destroyed (419) 419 Prototype IDs (1) 20 Alien Tech Used (0) 0 Bonus (0) 0 TOTAL SCORE: 1614 Bonus ------- None Cogmind --------- Core Integrity 0/400 Matter 300/300 Energy 100/100 System Corruption 0% Temperature Cool (6) Movement Core (100) Ox1 Location -9/Mines Parts ------- > --- POWER (2) -------- (None) > --- PROPULSION (2) --- (None) > --- UTILITY (3) ------ Small Storage Unit > --- WEAPON (2) ------- (None) > --- INVENTORY (8) ---- Huge Storage Unit Structural Scanner Assault Rifle Grenade Launcher Peak State ------------ > --- POWER ------------ Ion Engine Heavy Ion Engine > --- PROPULSION ------- Light Treads Light Treads > --- UTILITY ---------- Small Storage Unit Large Matter Pod Large Matter Pod > --- WEAPON ----------- Medium Laser EMP Blaster > --- INVENTORY -------- Huge Storage Unit Structural Scanner Assault Rifle Grenade Launcher [Rating: 12] Favorites ----------- Power Ion Engine Engine Ion Engine Propulsion Light Treads Treads Light Treads Utility Large Matter Pod Storage Large Matter Pod Weapon Medium Laser Energy Gun Medium Laser Ballistic Gun Assault Rifle Launcher Grenade Launcher Build | -11 -10 -9 -9 ------- Run | Yrd Mat Mat Min Slots Evolved 2 | . . 2 . Power 1 | . . 1 . Propulsion . | . . . . Utility 1 | . . 1 . Weapon . | . . . . Parts Attached 13 | 5 4 4 . Power 3 | 1 1 1 . Engine 3 | 1 1 1 . Core . | . . . . Reactor . | . . . . Propulsion 2 | 2 . . . Treads 2 | 2 . . . Leg . | . . . . Wheel . | . . . . Hover . | . . . . Flight . | . . . . Utility 4 | 1 1 2 . Device . | . . . . Storage 4 | 1 1 2 . Processor . | . . . . Hackware . | . . . . Protection . | . . . . Artifact . | . . . . Weapon 4 | 1 2 1 . Energy Gun 1 | 1 . . . Energy Cannon . | . . . . Ballistic Gun 1 | . 1 . . Ballistic Cannon . | . . . . Launcher 2 | . 1 1 . Special Weapon . | . . . . Impact Weapon . | . . . . Slashing Weapon . | . . . . Piercing Weapon . | . . . . Special Melee Weapon . | . . . . Unidentified Prototypes 1 | . . 1 . Parts Lost 7 | . . 4 3 Power 1 | . . 1 . Propulsion 2 | . . 2 . Utility 2 | . . . 2 Weapon 2 | . . 1 1 Highest Loss Streak 4 | . . 4 3 To Critical Strikes . | . . . . Average Backups 4 | 1 5 4 4 Power . | . 1 . . Propulsion . | . . . . Utility 1 | . 2 2 2 Weapon 1 | . 1 2 2 Tool/Special . | . . . . Unused Backups 3 | . . 2 1 Power 1 | . . 1 . Propulsion . | . . . . Utility 1 | . . . 1 Weapon 1 | . . 1 . Tool/Special . | . . . . Average Slot Usage (%) 88 | . 98 81 33 Engine 13 | . 14 13 . Treads 22 | . 28 17 . Storage 27 | . 26 28 27 Energy Gun 10 | . 11 11 5 Ballistic Gun 10 | . 14 8 . Launcher 2 | . 2 1 . Peak Build Rating 12 | 5 7 12 4 Average Rating 6 | 2 6 8 2 On Entrance 4 | . 5 7 4 Avg Prop Armor Cover (%) . | . . . . Naked Turns . | . . . . Heaviest Build 30 | 10 18 30 13 Greatest Support 40 | 40 40 40 3 Greatest Overweight (x) 5 | . . 5 4 Average Overweight (x) . | . . . 2 Largest Inventory Capacity 25 | 8 8 25 8 Average Capacity 7 | 6 8 8 8 Most Carried 7 | 5 7 7 4 Average Carried 4 | 1 5 4 4 Final Capacity 8 | 8 8 8 8 Final Carried 6 | 3 6 4 4 Class Distribution -------------------- 100% | Mutant Dominant Class ---------------- Mutant | -10/Materials Mutant | -9/Materials Mutant | -9/Mines Resources | -11 -10 -9 -9 ----------- Run | Yrd Mat Mat Min Matter Collected 483 | 188 271 24 . Remotely . | . . . . Salvage Created 423 | . 396 27 . Parts 29 | . 28 1 . Haulers Intercepted . | . . . . Recyclers Shooed . | . . . . Parts Field Recycled . | . . . . Retrieved Matter . | . . . . Parts Self-Destructed . | . . . . Prevented . | . . . . Parts Restored . | . . . . Kills | -11 -10 -9 -9 ------- Run | Yrd Mat Mat Min Combat Hostiles Destroyed 12 | . 12 . . Guns 5 | . 5 . . AOE 7 | . 7 . . Classes Destroyed 5 | . 4 1 . Builder 1 | . 1 . . Recycler 1 | . 1 . . Watcher 1 | . . 1 . Swarmer 3 | . 3 . . Grunt 9 | . 9 . . Best Kill Streak 6 | . 6 1 . Combat Bots Only 4 | . 4 . . Max Kills in Single Turn 2 | . 2 1 . Gunslinging . | . . . . Exploded 2 | . 2 . . Melee . | . . . . Uniques/NPCs Destroyed . | . . . . Combat | -11 -10 -9 -9 -------- Run | Yrd Mat Mat Min Hostile Shots Fired 182 | . 95 52 35 Missed 52 | . 32 11 9 Hits 130 | . 63 41 26 Melee 13 | . . 13 . Projectile 117 | . 63 28 26 Critical Strikes 4 | . 1 2 1 Damage Taken 1316 | . 496 565 255 Core 508 | . 103 252 153 Absorbed by Shields . | . . . . Ignored by Resistances 405 | . 163 164 78 Core Remaining (%) 79 | 100 58 . . Volleys Fired 28 | . 21 7 . Largest 2 | . 2 2 . Hottest 83 | . 70 83 . Shots Fired 56 | . 42 14 . Gun 46 | . 35 11 . Cannon . | . . . . Launcher 10 | . 7 3 . Special . | . . . . Kinetic 25 | . 21 4 . Thermal 21 | . 14 7 . Explosive 7 | . 7 . . Electromagnetic 3 | . . 3 . Robot Hit Streak 10 | . 10 4 . Robot Miss Streak 2 | . 2 2 . Penetration Max . | . . . . Secondary Targets . | . . . . Shots Hit Robots 29 | . 23 6 . Core Hits 24 | . 22 2 . Critical Kills 1 | . 1 . . Critical Parts Destroyed 1 | . 1 . . Critical Strikes 5 | . 3 2 . Burn 3 | . 1 2 . Destroy 2 | . 2 . . Melee Attacks . | . . . . Impact . | . . . . Slashing . | . . . . Piercing . | . . . . Sneak Attacks . | . . . . Combat Hostiles . | . . . . Follow-up Attacks . | . . . . Damage Inflicted 992 | . 794 198 . Guns 365 | . 287 78 . Cannons . | . . . . Explosions 625 | . 505 120 . Melee . | . . . . Ramming 2 | . 2 . . Kinetic 168 | . 139 29 . Thermal 197 | . 148 49 . Explosive 505 | . 505 . . Electromagnetic 120 | . . 120 . Impact . | . . . . Slashing . | . . . . Piercing . | . . . . Highest Corruption . | . . . . Average Corruption . | . . . . Corruption Purged . | . . . . Corruption Blocked . | . . . . Overload Shots . | . . . . Overflow Damage 34 | . 27 7 . Projectiles . | . . . . Explosions 34 | . 27 7 . Melee . | . . . . Knockbacks . | . . . . Impact . | . . . . Kinetic . | . . . . Secondary . | . . . . Self-Inflicted Damage . | . . . . Shots . | . . . . Rammed 1 | . 1 . . Targets Rammed 1 | . 1 . . Kicked . | . . . . Crushed . | . . . . Highest Temperature 111 | . 111 108 5 Average Temperature 35 | . 35 39 5 Received Heat Transfer 630 | . 261 168 201 Siege Activations . | . . . . Martial Activations . | . . . . Shielding Activations . | . . . . Robots Disrupted . | . . . . Combat Hostiles . | . . . . Robots Corrupted . | . . . . Combat Hostiles . | . . . . Parts Fried . | . . . . Impact Corruptions . | . . . . Robots Melted . | . . . . Combat Hostiles . | . . . . Parts Melted . | . . . . Heat Transferred 814 | . 518 296 . Parts Sabotaged . | . . . . Parts Stolen . | . . . . Parts Stripped . | . . . . Power Chain Reactions . | . . . . Alert | -11 -10 -9 -9 ------- Run | Yrd Mat Mat Min Maximum Alert Level 1 | . 1 . . Low Security (%) 96 | 100 92 100 100 Level 1 3 | . 7 . . Level 2 . | . . . . Level 3 . | . . . . Level 4 . | . . . . Level 5 . | . . . . High Security . | . . . . Max Security . | . . . . Peak Influence 236 | . 236 77 1 Initial 77 | . . 77 1 Average 41 | . 63 26 . Influence Increases 406 | . 336 70 . Destroy 0b10 Robot/C 240 | . 240 . . Destroy 0b10 Robot/NC 15 | . 10 5 . Destroy Leader 52 | . 50 2 . Disable Machine 27 | . 9 18 . Destroy Structure 27 | . 27 . . Lose Combat Pursuer 45 | . . 45 . Influence Decreases 406 | . 120 281 5 Entered New Map 143 | . . 139 4 Time Decay 227 | . 120 107 . Lost Part 36 | . . 35 1 Squads Dispatched 3 | . 2 1 . Investigation 2 | . 2 . . Extermination . | . . . . Reinforcement 1 | . . 1 . Assault . | . . . . Garrison . | . . . . Intercept . | . . . . Searches Triggered . | . . . . Construction Impeded . | . . . . Haulers Reinforced . | . . . . Active Scanning Responses . | . . . . Cargo Convoy Interrupts . | . . . . Stealth | -11 -10 -9 -9 --------- Run | Yrd Mat Mat Min Distress Signals 4 | . 2 2 . Communications Jammed . | . . . . Distress Signals . | . . . . Times Spotted 32 | . 17 12 3 Peak Tracking Total 6 | . 5 6 3 Tactical Retreats 2 | . . 2 . Traps | -11 -10 -9 -9 ------- Run | Yrd Mat Mat Min Traps Triggered 1 | . 1 . . Indirectly . | . . . . Trap Hack Attempts . | . . . . Triggered . | . . . . Disarmed . | . . . . Reprogrammed . | . . . . Reused . | . . . . Traps Extracted . | . . . . Installed . | . . . . Triggered . | . . . . Machines | -11 -10 -9 -9 ---------- Run | Yrd Mat Mat Min Machines Disabled 3 | . 1 2 . Max in Single Turn 1 | . 1 1 . Machines Repaired . | . . . . Machines Dismantled . | . . . . Machines Sabotaged . | . . . . Overloaded Fab Kills . | . . . . Hacking | -11 -10 -9 -9 --------- Run | Yrd Mat Mat Min Machines Accessed 6 | . 4 2 . Terminals 5 | . 4 1 . Fabricators . | . . . . Repair Stations . | . . . . Recycling Units . | . . . . Scanalyzers 1 | . . 1 . Garrison Access . | . . . . Total Hacks 16 | . 10 6 . Successful 11 | . 7 4 . Failed 5 | . 3 2 . Catastrophic 1 | . . 1 . Database Lockouts . | . . . . Manual . | . . . . Terminals 13 | . 10 3 . Fabricators . | . . . . Repair Stations . | . . . . Recycling Units . | . . . . Scanalyzers 3 | . . 3 . Garrison Access . | . . . . Terminal Hacks 8 | . 7 1 . Record 6 | . 5 1 . Alert Level 1 | . 1 . . Patrol Status 1 | . 1 . . Fabricator Hacks . | . . . . Repair Station Hacks . | . . . . Recycling Unit Hacks . | . . . . Scanalyzer 3 | . . 3 . Insert Component 2 | . . 2 . Analyze 1 | . . 1 . Garrison Access Hacks . | . . . . Unauthorized Hacks . | . . . . Terminals . | . . . . Fabricators . | . . . . Repair Stations . | . . . . Recycling Units . | . . . . Scanalyzers . | . . . . Garrison Access . | . . . . Data Cores Recovered . | . . . . Used . | . . . . Hacking Detections 4 | . 2 2 . Full Trace Events 4 | . 2 2 . Feedback Events . | . . . . Feedback Blocked . | . . . . Robot Schematics Acquired . | . . . . Robots Built . | . . . . Authchips . | . . . . Time . | . . . . Total Robot Build Rating . | . . . . Part Schematics Acquired 1 | . . 1 . Parts Built . | . . . . Authchips . | . . . . Time . | . . . . Total Part Build Rating . | . . . . Part Studies Acquired . | . . . . Parts Repaired . | . . . . Time . | . . . . Parts Recycled . | . . . . Recycled Matter . | . . . . Retrieved Matter . | . . . . Retrieved Components . | . . . . Parts Scanalyzed 1 | . . 1 . Part Schematics Acquired 1 | . . 1 . Parts Damaged . | . . . . Bothacking | -11 -10 -9 -9 ------------ Run | Yrd Mat Mat Min Used RIF Installer . | . . . . Robots Hacked . | . . . . Non-combat . | . . . . Combat . | . . . . Robot Hacks Applied . | . . . . Relay Couplers Released . | . . . . Fabnet Peak Effective % . | . . . . Robots Rewired . | . . . . Allies Hacked . | . . . . Hacks Repelled . | . . . . Allies | -11 -10 -9 -9 -------- Run | Yrd Mat Mat Min Total Allies . | . . . . Largest Group . | . . . . Highest-Rated Group . | . . . . Highest-Rated Ally . | . . . . Total Orders . | . . . . Ally Attacks . | . . . . Total Damage . | . . . . Kills . | . . . . Allies Corrupted . | . . . . Allies Melted . | . . . . Intel | -11 -10 -9 -9 ------- Run | Yrd Mat Mat Min Active Infowar (turns) . | . . . . Robot Analysis Total . | . . . . Derelict Logs Recovered . | . . . . Drone Launches . | . . . . Drone Recoveries . | . . . . Exploration | -11 -10 -9 -9 ------------- Run | Yrd Mat Mat Min Turns Passed 827 | 86 420 287 34 Spaces Moved 472 | 90 214 146 22 Core 106 | 65 . 19 22 Treads 366 | 25 214 127 . Legs . | . . . . Wheels . | . . . . Hover . | . . . . Flight . | . . . . Fastest Speed 50 | 50 160 160 100 Average Speed 149 | 80 160 176 152 Slowest Speed 300 | 160 160 300 250 Overloaded Moves . | . . . . Propulsion Burnouts . | . . . . Robots Hopped . | . . . . Potential Cave-ins . | . . . . Cave-ins Triggered . | . . . . Exploration Rate (%) 15 | 3 32 21 5 Regions Visited 3 Branch Regions 1 Pre-discovered Areas . | . . . . Known Exits Taken . | . . . . Unknown Exits Taken 3 | 1 1 1 . Scrap Searched . | . . . . Spaces Dug . | . . . . Terrain Destroyed 29 | . 29 . . Melee . | . . . . Projectile . | . . . . AOE 29 | . 29 . . Terrain Rammed . | . . . . Walls Destroyed . | . . . . Machines Disabled . | . . . . Actions | -11 -10 -9 -9 --------- Run | Yrd Mat Mat Min Total 540 | 104 251 163 22 Wait . | . . . . Move 469 | 89 213 145 22 Hop . | . . . . Pick Up 17 | 9 6 2 . Fast Attach . | . . . . Attach 14 | 5 5 4 . Detach 5 | . 3 2 . Swap 2 | . 1 1 . Drop 4 | 1 1 2 . Fire 28 | . 21 7 . Melee . | . . . . Ram . | . . . . Kick . | . . . . Crush 1 | . 1 . . Escape Stasis . | . . . . Rewire . | . . . . Trap . | . . . . Miscellaneous . | . . . . Route ------- -11/Scrapyard -10/Materials -9/Materials -9/Mines History --------- Turn | Location | Event 6 | -11/Scrapyard | Discovered new exit (range 15) 87 | -11/Scrapyard | Entered Materials 334 | -10/Materials | Build established: Mutant 485 | -10/Materials | Discovered new exit (range 9) 507 | -10/Materials | Entered another Materials area 507 | -9/Materials | Evolved 2 slots: Power x1, Utility x1 673 | -9/Materials | Discovered new exit (range 14) 786 | -9/Materials | Core integrity fell below 50% 794 | -9/Materials | Entered Mines 797 | -9/Mines | Lost 4 parts (1p2n1w) 816 | -9/Mines | Core integrity fell below 20% 828 | -9/Mines | Destroyed by G-34 Mercenary with Small Laser Last Messages --------------- 00719_ Destroyed Lgt. Ion Engine. 00720_ ALERT: Hostiles spotted, dispatching reinforcements to Terminal M002. 00720_ Lgt. Treads destroyed. 00724_ Hvy. Ion Engine severed. 00734_ Ion Engine destroyed. 00736_ G-34 Mercenary IFF system glitched. 00743_ R-06 Scavenger collects Hvy. Ion Engine. 00745_ G-34 Mercenary misfires. 00745_ Lgt. Treads destroyed. 00751_ G-34 Mercenary IFF system glitched. 00766_ W-16 Scout distress signal alerts nearby ally. 00766_ EMP Blaster destroyed. 00781_ G-34 Mercenary IFF system glitched. LOCATION=UNKNOWN GOAL=ESCAPE 00800_ Med. Laser destroyed. 00803_ Lrg. Matter Pod destroyed. 00821_ Critical hit (Burn: +37). Map ----- +----------------------------------------------------+ | | | | | | | | | | | | | | | | | | | | | | | | | | | | | | | | | | | | | | | | | ?????????????????????????????????????? | | ???????????????####??????????????????? | | ??????????????## ###?####???????????? | | ??????????????# ### ##??????????? | | ??????????????# #??????????? | | ??????????????##### g @#??????????? | | ??????????????????## gg ##??????????? | | ???????????????????# #???????????? | | ???????????????????# #???????????? | | ???????????????????## #???????????? | | ????????????????????# #???????????? | | ????????????????????# #???????????? | | ??????????????????? #???????????? | | ??????????????????### #???????????? | | ????????????????????# ???????????? | | ???????????????????? ??????????? | | ???????????????????## ??????????? | | ????????????????????## ??????????? | | ?????????????????????##### ?????????? | | ?????????????????????????? ?????????? | | ?????????????????????????? #????????? | | ??????????????????????????$ #????????? | | ??????????????????????????? #????????? | | ??????????????????????????? #????????? | | ??????????????????????????? ?????????? | | ?????????????????????????????????????? | | ?????????????????????????????????????? | | ?????????????????????????????????????? | | ?????????????????????????????????????? | | ?????????????????????????????????????? | +----------------------------------------------------+ Best States ------------- Heat Dissipation 28 Energy Generation 19 Energy Capacity 430 Matter Stores 392 Matter Capacity 600 Sight Range 16 Terrain Scan Density 10 Resistance: KI 20 Resistance: TH 20 Resistance: EX 20 Resistance: EM 20 Resistance: I 20 Resistance: S 20 Resistance: P 20 Evasion (%) 50 Recoil Reduction 2 Offensive Hacking 10 Item Schematics ----------------- Grenade Launcher | -9/Materials | Scanalyzed Robot Schematics ------------------ None Fabricated ------------ Nothing Repaired ---------- Nothing Studied --------- None Alien Tech Used ----------------- None Achievements -------------- None Challenges ------------ None Game ------ Seed TeleporterTrapSlayer Manual? 0 Play Time 00:14:01 Cumulative 8.3 hours Start 2026.08.24 @ 22:17:52 End 2026.08.24 @ 22:33:12 Sessions 1 Manual Loads 0 Difficulty Adventurer Special Mode None Game No. 18 Rogue 4 Adventurer 14 Explorer 0 Win Type - Total 0 Types 0/0/0/0/0/0/0/0/0/0 Lore% 1 Gallery% 10 Achievement% 6 Wizard Run 0 Options --------- Layout 1 ASCII 0 Keyboard 0 Movement Numpad Keybinds 0 Fullscreen 1 Font 24/Smallcaps Map View 50x35 Zoom Use 0% Tactical HUD 1 Map Filters NONE Filters NONE Steam 1 RUN: dfd7b1bf-9a42-46dd-bb6b-d025fa1632ab